fUST/lending_fUST_20240705
["ID","MTS","AMOUNT","RATE_DAILY","PERIOD"]
[331222182,1720140651526,-1097.95,0.00049589,120]
[331222183,1720140651536,-304.3417626,0.00049589,4]
[331222185,1720140651545,-1464.88195694,0.00049589,4]
[331222187,1720140651555,-500.0,0.00049589,120]
[331222190,1720140651565,-500.0,0.00049589,120]
[331222192,1720140651574,-500.0,0.00049589,120]
[331222193,1720140651585,-500.0,0.00049589,120]
[331222196,1720140651594,-221.53308225,0.00049589,4]
[331222198,1720140651603,-193.39153138,0.00049589,4]
[331222200,1720140651613,-500.0,0.00049589,120]
[331222201,1720140651622,-500.0,0.00049589,120]
[331222204,1720140651632,-545.88478489,0.00049589,120]
[331222205,1720140651641,-500.0,0.00049589,120]
[331222207,1720140651650,-500.0,0.00049589,120]
[331222209,1720140651659,-500.0,0.00049589,120]
[331222212,1720140651669,-500.0,0.00049589,120]
[331222214,1720140651678,-3066.9,0.00049589,120]
[331222216,1720140651691,-572.24,0.00049589,120]
[331222218,1720140651700,-178.76576962,0.00049589,120]
[331222219,1720140651709,-500.0,0.00049589,120]
[331222222,1720140651719,-974.36,0.00049589,120]
[331222224,1720140651728,-500.0,0.00049589,120]
[331222226,1720140651738,-500.0,0.00049589,120]
[331222228,1720140651747,-500.0,0.00049589,120]
[331222230,1720140651756,-500.0,0.00049589,120]
[331222232,1720140651766,-500.0,0.00049589,120]
[331222234,1720140651776,-556.86,0.00049589,120]
[331222235,1720140651785,-500.0,0.00049589,120]
[331222237,1720140651795,-500.0,0.00049589,120]
[331222239,1720140651804,-218.12414058,0.00049589,120]
[331222242,1720140651814,-500.0,0.00049589,120]
[331222244,1720140651826,-500.0,0.00049589,120]
[331222245,1720140651836,-500.0,0.00049589,120]
[331222248,1720140651846,-500.0,0.00049589,120]
[331222250,1720140651856,-500.0,0.00049589,120]
[331222252,1720140651865,-503.03791609,0.00049589,120]
[331222254,1720140651875,-500.0,0.00049589,120]
[331222256,1720140651884,-500.0,0.00049589,120]
[331222257,1720140651894,-500.0,0.00049589,120]
[331222260,1720140651904,-500.0,0.00049589,30]
[331222262,1720140651913,-500.0,0.00049589,120]
[331222264,1720140651923,-525.5638998,0.00049589,120]
[331222266,1720140651935,-500.0,0.00049589,120]
[331222267,1720140651948,-500.0,0.00049589,120]
[331222269,1720140651957,-500.0,0.00049589,120]
[331222271,1720140651966,-500.0,0.00049589,120]
[331222273,1720140651976,-275.0,0.00049589,120]
[331222275,1720140651987,-500.0,0.00049589,120]
[331222277,1720140651996,-500.0,0.00049589,120]
[331222279,1720140652005,-500.0,0.00049589,120]
[331222281,1720140652014,-500.0,0.00049589,120]
[331222283,1720140652024,-500.0,0.00049589,120]
[331222285,1720140652033,-184.22375547,0.00049589,120]
[331222287,1720140652043,-500.0,0.00049589,120]
[331222289,1720140652052,-500.0,0.00049589,120]
[331222291,1720140652062,-500.0,0.00049589,120]
[331222293,1720140652071,-500.0,0.00049589,120]
[331222295,1720140652080,-260.56302691,0.00049589,120]
[331222297,1720140652090,-408.71024123,0.00049589,120]
[331222299,1720140652099,-500.0,0.00049589,120]
[331222300,1720140652108,-500.0,0.00049589,120]
[331222303,1720140652118,-500.0,0.00049589,120]
[331222304,1720140652128,-151.0,0.00049589,14]
[331222306,1720140652137,-151.0,0.00049589,14]
[331222309,1720140652147,-500.0,0.00049589,120]
[331222311,1720140652157,-500.0,0.00049589,120]
[331222312,1720140652167,-500.0,0.00049589,120]
[331222314,1720140652177,-500.0,0.00049589,120]
[331222316,1720140652194,-500.0,0.00049589,120]
[331222318,1720140652204,-500.0,0.00049589,120]
[331222320,1720140652214,-500.0,0.00049589,120]
[331222322,1720140652223,-500.0,0.00049589,120]
[331222324,1720140652234,-500.0,0.00049589,120]
[331222326,1720140652244,-2694.95,0.00049589,120]
[331222328,1720140652253,-500.0,0.00049589,120]
[331222330,1720140652262,-151.0,0.00049589,14]
[331222332,1720140652272,-500.0,0.00049589,120]
[331222334,1720140652281,-151.0,0.00049589,14]
[331222336,1720140652291,-500.0,0.00049589,120]
[331222338,1720140652300,-500.0,0.00049589,120]
[331222340,1720140652310,-476.562651,0.00049589,120]
[331222342,1720140652320,-500.0,0.00049589,120]
[331222344,1720140652329,-620.9517906,0.00049589,120]
[331222346,1720140652339,-500.0,0.00049589,120]
[331222348,1720140652349,-500.0,0.00049589,120]
[331222350,1720140652359,-500.0,0.00049589,120]
[331222351,1720140652368,-500.0,0.00049589,120]
[331222353,1720140652377,-500.0,0.00049589,120]
[331222355,1720140652388,-500.0,0.00049589,120]
[331222357,1720140652398,-500.0,0.00049589,120]
[331222359,1720140652407,-500.0,0.00049589,120]
[331222361,1720140652417,-500.0,0.00049589,120]
[331222363,1720140652426,-500.0,0.00049589,120]
[331222365,1720140652446,-500.0,0.00049589,120]
[331222367,1720140652455,-500.0,0.00049589,120]
[331222369,1720140652466,-500.0,0.00049589,120]
[331222371,1720140652475,-500.0,0.00049589,120]
[331222373,1720140652487,-500.0,0.00049589,120]
[331222375,1720140652496,-500.0,0.00049589,120]
[331222377,1720140652505,-500.0,0.00049589,120]
[331222380,1720140652520,-500.0,0.00049589,120]
[331222381,1720140652534,-500.0,0.00049589,120]
[331222383,1720140652543,-500.0,0.00049589,120]
[331222385,1720140652553,-500.0,0.00049589,120]
[331222387,1720140652563,-500.0,0.00049589,120]
[331222389,1720140652572,-500.0,0.00049589,120]
[331222391,1720140652581,-505.15856225,0.00049589,120]
[331222393,1720140652591,-500.0,0.00049589,120]
[331222395,1720140652600,-500.0,0.00049589,120]
[331222397,1720140652609,-500.0,0.00049589,120]
[331222399,1720140652619,-500.0,0.00049589,120]
[331222401,1720140652628,-500.0,0.00049589,120]
[331222403,1720140652639,-500.0,0.00049589,120]
[331222405,1720140652649,-500.0,0.00049589,120]
[331222407,1720140652658,-500.0,0.00049589,120]
[331222409,1720140652667,-500.0,0.00049589,120]
[331222411,1720140652676,-500.0,0.00049589,120]
[331222413,1720140652690,-500.0,0.00049589,120]
[331222415,1720140652700,-500.0,0.00049589,120]
[331222417,1720140652709,-500.0,0.00049589,120]
[331222419,1720140652718,-500.0,0.00049589,120]
[331222421,1720140652727,-500.0,0.00049589,120]
[331222423,1720140652736,-500.0,0.00049589,120]
[331222424,1720140652745,-500.0,0.00049589,120]
[331222426,1720140652754,-500.0,0.00049589,120]
[331222428,1720140652763,-500.0,0.00049589,120]
[331222430,1720140652772,-500.0,0.00049589,120]
[331222432,1720140652781,-500.0,0.00049589,120]
[331222434,1720140652791,-500.0,0.00049589,120]
[331222436,1720140652800,-500.0,0.00049589,120]
[331222438,1720140652809,-500.0,0.00049589,120]
[331222440,1720140652818,-500.0,0.00049589,120]
[331222442,1720140652828,-500.0,0.00049589,120]
[331222444,1720140652837,-500.0,0.00049589,120]
[331222446,1720140652847,-500.0,0.00049589,120]
[331222448,1720140652856,-500.0,0.00049589,120]
[331222450,1720140652866,-500.0,0.00049589,120]
[331222452,1720140652875,-500.0,0.00049589,120]
[331222454,1720140652883,-500.0,0.00049589,120]
[331222456,1720140652892,-500.0,0.00049589,120]
[331222458,1720140652902,-500.0,0.00049589,120]
[331222460,1720140652911,-500.0,0.00049589,120]
[331222462,1720140652920,-500.0,0.00049589,120]
[331222464,1720140652930,-500.0,0.00049589,120]
[331222466,1720140652944,-500.0,0.00049589,120]
[331222468,1720140652953,-1126.4,0.00049589,120]
[331222470,1720140652963,-500.0,0.00049589,120]
[331222472,1720140652972,-500.0,0.00049589,120]
[331222474,1720140652982,-500.0,0.00049589,120]
[331222476,1720140652991,-209.30230028,0.00049589,120]
[331222478,1720140653001,-500.0,0.00049589,120]
[331222480,1720140653011,-500.0,0.00049589,20]
[331222482,1720140653021,-500.0,0.00049589,120]
[331222484,1720140653030,-500.0,0.00049589,120]
[331222486,1720140653039,-500.0,0.00049589,120]
[331222488,1720140653051,-500.0,0.00049589,120]
[331222490,1720140653060,-500.0,0.00049589,120]
[331222492,1720140653069,-500.0,0.00049589,120]
[331222494,1720140653079,-397.78,0.00049589,120]
[331222496,1720140653088,-500.0,0.00049589,120]
[331222498,1720140653097,-500.0,0.00049589,120]
[331222500,1720140653107,-151.0,0.00049589,14]
[331222502,1720140653116,-566.97,0.00049589,120]
[331222503,1720140653125,-394.18557084,0.00049589,120]
[331222505,1720140653135,-500.0,0.00049589,120]
[331222507,1720140653145,-500.0,0.00049589,120]
[331222509,1720140653155,-3444.46,0.00049589,120]
[331222511,1720140653164,-500.0,0.00049589,120]
[331222513,1720140653173,-500.0,0.00049589,120]
[331222515,1720140653186,-500.0,0.00049589,120]
[331222517,1720140653196,-500.0,0.00049589,120]
[331222519,1720140653206,-500.0,0.00049589,120]
[331222521,1720140653215,-2525.04,0.00049589,120]
[331222523,1720140653224,-500.0,0.00049589,120]
[331222525,1720140653234,-500.0,0.00049589,120]
[331222527,1720140653243,-500.0,0.00049589,120]
[331222529,1720140653253,-500.0,0.00049589,120]
[331222531,1720140653262,-500.0,0.00049589,120]
[331222533,1720140653271,-500.0,0.00049589,120]
[331222535,1720140653280,-500.0,0.00049589,120]
[331222537,1720140653289,-912.75,0.00049589,120]
[331222539,1720140653298,-500.0,0.00049589,120]
[331222541,1720140653308,-500.0,0.00049589,120]
[331222543,1720140653317,-500.0,0.00049589,120]
[331222545,1720140653326,-500.0,0.00049589,120]
[331222547,1720140653335,-500.0,0.00049589,120]
[331222549,1720140653344,-500.0,0.00049589,120]
[331222551,1720140653353,-500.0,0.00049589,120]
[331222553,1720140653363,-500.0,0.00049589,120]
[331222555,1720140653372,-500.0,0.00049589,120]
[331222557,1720140653381,-500.0,0.00049589,120]
[331222558,1720140653391,-500.0,0.00049589,120]
[331222560,1720140653400,-500.0,0.00049589,120]
[331222561,1720140653408,-216.218892,0.00049589,14]
[331222563,1720140653417,-500.0,0.00049589,120]
[331222565,1720140653426,-216.218892,0.00049589,14]
[331222567,1720140653440,-151.0,0.00049589,14]
[331222569,1720140653450,-151.0,0.00049589,14]
[331222571,1720140653459,-500.0,0.00049589,120]
[331222573,1720140653468,-151.0,0.00049589,14]
[331222575,1720140653477,-500.0,0.00049589,120]
[331222577,1720140653487,-500.0,0.00049589,120]
[331222578,1720140653496,-500.0,0.00049589,120]
[331222580,1720140653505,-631.72480117,0.00049589,120]
[331222582,1720140653516,-267.55,0.00049589,7]
[331222584,1720140653529,-812.53,0.00049589,120]
[331222586,1720140653539,-500.0,0.00049589,120]
[331222588,1720140653548,-151.0,0.00049589,14]
[331222590,1720140653557,-500.0,0.00049589,120]
[331222592,1720140653566,-500.0,0.00049589,120]
[331222594,1720140653575,-151.0,0.00049589,14]
[331222596,1720140653584,-151.0,0.00049589,14]
[331222597,1720140653593,-500.0,0.00049589,120]
[331222599,1720140653602,-500.0,0.00049589,120]
[331222601,1720140653611,-572.477477,0.00049589,120]
[331222603,1720140653622,-500.0,0.00049589,120]
[331222605,1720140653632,-500.0,0.00049589,120]
[331222606,1720140653641,-878.87,0.00049589,120]
[331222607,1720140653650,-500.0,0.00049589,120]
[331222608,1720140653660,-500.0,0.00049589,120]
[331222609,1720140653668,-500.0,0.00049589,120]
[331222610,1720140653677,-500.0,0.00049589,120]
[331222611,1720140653693,-500.0,0.00049589,120]
[331222612,1720140653702,-500.0,0.00049589,120]
[331222613,1720140653711,-500.0,0.00049589,120]
[331222614,1720140653811,-500.0,0.00049589,120]
[331222615,1720140653821,-500.0,0.00049589,120]
[331222616,1720140653830,-500.0,0.00049589,120]
[331222618,1720140653839,-500.0,0.00049589,120]
[331222620,1720140653848,-500.0,0.00049589,120]
[331222621,1720140653858,-500.0,0.00049589,120]
[331222623,1720140653867,-500.0,0.00049589,120]
[331222625,1720140653877,-500.0,0.00049589,120]
[331222627,1720140653886,-500.0,0.00049589,120]
[331222629,1720140653896,-500.0,0.00049589,120]
[331222631,1720140653906,-500.0,0.00049589,120]
[331222633,1720140653915,-500.0,0.00049589,120]
[331222635,1720140653925,-500.0,0.00049589,120]
[331222637,1720140653941,-1097.61,0.00049589,120]
[331222639,1720140653951,-500.0,0.00049589,120]
[331222641,1720140653960,-500.0,0.00049589,120]
[331222643,1720140653969,-500.0,0.00049589,60]
[331222645,1720140653979,-655.14,0.00049589,120]
[331222647,1720140653988,-500.0,0.00049589,120]
[331222649,1720140653998,-500.0,0.00049589,120]
[331222651,1720140654007,-1069.76,0.00049589,120]
[331222653,1720140654017,-500.0,0.00049589,120]
[331222655,1720140654027,-500.0,0.00049589,120]
[331222657,1720140654037,-550.97730083,0.00049589,120]
[331222659,1720140654047,-500.0,0.00049589,120]
[331222661,1720140654057,-500.0,0.00049589,120]
[331222663,1720140654067,-500.0,0.00049589,20]
[331222665,1720140654078,-1742.62,0.00049589,120]
[331222667,1720140654088,-226.174206,0.00049589,14]
[331222669,1720140654098,-564.93040162,0.00049589,120]
[331222671,1720140654108,-226.174206,0.00049589,14]
[331222673,1720140654118,-494.328172,0.00049589,14]
[331222675,1720140654128,-500.0,0.00049589,120]
[331222677,1720140654138,-500.0,0.00049589,120]
[331222679,1720140654147,-494.328172,0.00049589,14]
[331222681,1720140654157,-500.0,0.00049589,120]
[331222683,1720140654166,-500.0,0.00049589,120]
[331222685,1720140654176,-550.73,0.00049589,120]
[331222686,1720140654191,-151.0,0.00049589,14]
[331222688,1720140654201,-151.0,0.00049589,14]
[331222690,1720140654210,-6113.69,0.00049589,120]
[331222692,1720140654220,-151.0,0.00049589,14]
[331222694,1720140654230,-279.28950152,0.00049589,120]
[331222696,1720140654240,-500.0,0.00049589,120]
[331222698,1720140654250,-500.0,0.00049589,120]
[331222700,1720140654260,-270.0,0.00049589,14]
[331222702,1720140654271,-500.0,0.00049589,120]
[331222704,1720140654280,-151.0,0.00049589,14]
[331222706,1720140654290,-717.7,0.00049589,21]
[331222707,1720140654300,-500.0,0.00049589,120]
[331222709,1720140654310,-270.0,0.00049589,14]
[331222711,1720140654320,-500.0,0.00049589,120]
[331222713,1720140654330,-500.0,0.00049589,120]
[331222715,1720140654340,-281.521941,0.00049589,14]
[331222717,1720140654350,-500.0,0.00049589,120]
[331222719,1720140654360,-500.0,0.00049589,120]
[331222721,1720140654370,-163.61347,0.0004962,2]
[331222723,1720140654380,-169.3,0.00049805,60]
[331222725,1720140654391,-500.0,0.00049863,120]
[331222727,1720140654401,-500.0,0.00049863,120]
[331222729,1720140654411,-2116.99,0.00049863,120]
[331222731,1720140654421,-1097.95,0.00049863,120]
[331222733,1720140654430,-500.0,0.00049863,120]
[331222735,1720140654446,-500.0,0.00049863,120]
[331222737,1720140654455,-500.0,0.00049863,120]
[331222738,1720140654465,-500.0,0.00049863,120]
[331222740,1720140654475,-222.2160453,0.00049863,120]
[331222742,1720140654486,-500.0,0.00049863,120]
[331222744,1720140654503,-500.0,0.00049863,120]
[331222746,1720140654514,-500.0,0.00049863,120]
[331222748,1720140654524,-3066.9,0.00049863,120]
[331222750,1720140654536,-500.0,0.00049863,120]
[331222752,1720140654547,-974.36,0.00049863,120]
[331222754,1720140654558,-500.0,0.00049863,120]
[331222756,1720140654570,-500.0,0.00049863,120]
[331222758,1720140654581,-500.0,0.00049863,120]
[331222760,1720140654592,-500.0,0.00049863,120]
[331222762,1720140654602,-500.0,0.00049863,120]
[331222764,1720140654613,-500.0,0.00049863,120]
[331222766,1720140654623,-500.0,0.00049863,120]
[331222768,1720140654633,-500.0,0.00049863,120]
[331222770,1720140654643,-500.0,0.00049863,120]
[331222772,1720140654653,-500.0,0.00049863,120]
[331222774,1720140654663,-500.0,0.00049863,120]
[331222776,1720140654673,-500.0,0.00049863,120]
[331222777,1720140654685,-500.0,0.00049863,120]
[331222779,1720140654697,-500.0,0.00049863,30]
[331222781,1720140654707,-500.0,0.00049863,120]
[331222783,1720140654716,-500.0,0.00049863,120]
[331222785,1720140654727,-500.0,0.00049863,120]
[331222787,1720140654741,-500.0,0.00049863,120]
[331222789,1720140654751,-500.0,0.00049863,120]
[331222791,1720140654762,-500.0,0.00049863,120]
[331222793,1720140654772,-500.0,0.00049863,120]
[331222795,1720140654782,-500.0,0.00049863,120]
[331222797,1720140654792,-500.0,0.00049863,120]
[331222799,1720140654802,-500.0,0.00049863,120]
[331222801,1720140654811,-500.0,0.00049863,120]
[331222803,1720140654821,-500.0,0.00049863,120]
[331222805,1720140654831,-151.0,0.00049863,14]
[331222807,1720140654841,-603.10771606,0.00049863,120]
[331222809,1720140654852,-500.0,0.00049863,120]
[331222811,1720140654862,-500.0,0.00049863,120]
[331222813,1720140654872,-500.0,0.00049863,120]
[331222815,1720140654883,-500.0,0.00049863,120]
[331222816,1720140654894,-500.0,0.00049863,120]
[331222818,1720140654905,-500.0,0.00049863,120]
[331222820,1720140654916,-500.0,0.00049863,120]
[331222822,1720140654926,-500.0,0.00049863,120]
[331222824,1720140654941,-2694.95,0.00049863,120]
[331222826,1720140654951,-151.0,0.00049863,14]
[331222828,1720140654960,-500.0,0.00049863,120]
[331222830,1720140654971,-500.0,0.00049863,120]
[331222832,1720140654981,-151.0,0.00049863,14]
[331222834,1720140654991,-506.35902007,0.00049863,120]
[331222836,1720140655000,-500.0,0.00049863,120]
[331222838,1720140655010,-500.0,0.00049863,120]
[331222840,1720140655019,-500.0,0.00049863,120]
[331222841,1720140655028,-500.0,0.00049863,120]
[331222843,1720140655038,-500.0,0.00049863,120]
[331222845,1720140655047,-500.0,0.00049863,120]
[331222847,1720140655057,-500.0,0.00049863,120]
[331222849,1720140655066,-500.0,0.00049863,120]
[331222851,1720140655075,-500.0,0.00049863,120]
[331222853,1720140655085,-500.0,0.00049863,120]
[331222855,1720140655094,-500.0,0.00049863,120]
[331222857,1720140655104,-500.0,0.00049863,120]
[331222859,1720140655114,-500.0,0.00049863,120]
[331222861,1720140655123,-500.0,0.00049863,120]
[331222863,1720140655132,-500.0,0.00049863,120]
[331222865,1720140655141,-500.0,0.00049863,120]
[331222867,1720140655150,-500.0,0.00049863,120]
[331222869,1720140655159,-500.0,0.00049863,120]
[331222871,1720140655168,-500.0,0.00049863,120]
[331222872,1720140655178,-500.0,0.00049863,120]
[331222874,1720140655190,-500.0,0.00049863,120]
[331222876,1720140655200,-500.0,0.00049863,120]
[331222878,1720140655210,-500.0,0.00049863,120]
[331222880,1720140655219,-500.0,0.00049863,120]
[331222882,1720140655228,-206.90247,0.00049863,14]
[331222884,1720140655237,-206.90247,0.00049863,14]
[331222886,1720140655247,-500.0,0.00049863,120]
[331222888,1720140655256,-500.0,0.00049863,120]
[331222890,1720140655265,-500.0,0.00049863,120]
[331222892,1720140655275,-500.0,0.00049863,120]
[331222894,1720140655284,-500.0,0.00049863,120]
[331222896,1720140655293,-500.0,0.00049863,120]
[331222898,1720140655303,-500.0,0.00049863,120]
[331222900,1720140655312,-500.0,0.00049863,120]
[331222902,1720140655322,-500.0,0.00049863,120]
[331222904,1720140655331,-500.0,0.00049863,120]
[331222906,1720140655340,-500.0,0.00049863,120]
[331222908,1720140655350,-504.19239552,0.00049863,120]
[331222910,1720140655359,-500.0,0.00049863,120]
[331222912,1720140655368,-151.0,0.00049863,14]
[331222913,1720140655377,-500.0,0.00049863,120]
[331222915,1720140655387,-151.0,0.00049863,14]
[331222917,1720140655396,-500.0,0.00049863,120]
[331222919,1720140655405,-500.0,0.00049863,120]
[331222921,1720140655415,-1126.4,0.00049863,120]
[331222923,1720140655424,-500.0,0.00049863,120]
[331222925,1720140655436,-500.0,0.00049863,120]
[331222927,1720140655445,-500.0,0.00049863,120]
[331222929,1720140655453,-500.0,0.00049863,120]
[331222931,1720140655462,-330.52327294,0.00049863,20]
[331222933,1720140655472,-500.0,0.00049863,120]
[331222935,1720140655481,-500.0,0.00049863,120]
[331222937,1720140655497,-500.0,0.00049863,120]
[331222939,1720140655506,-500.0,0.00049863,120]
[331222941,1720140655516,-500.0,0.00049863,120]
[331222943,1720140655527,-500.0,0.00049863,120]
[331222945,1720140655537,-211.6788189,0.00049863,120]
[331222947,1720140655546,-500.0,0.00049863,120]
[331222949,1720140655556,-566.97,0.00049863,120]
[331222951,1720140655565,-506.60910419,0.00049863,120]
[331222953,1720140655575,-500.0,0.00049863,120]
[331222954,1720140655585,-3444.46,0.00049863,120]
[331222956,1720140655597,-500.0,0.00049863,120]
[331222958,1720140655606,-500.0,0.00049863,120]
[331222960,1720140655615,-500.0,0.00049863,120]
[331222962,1720140655625,-500.0,0.00049863,120]
[331222964,1720140655634,-500.0,0.00049863,120]
[331222966,1720140655644,-1485.58791561,0.00049863,120]
[331222980,1720140655776,-305.73485395,0.00049863,120]
[331222982,1720140655788,-418.88,0.00049863,120]
[331222986,1720140655817,-1000.0,0.0003,120]
[331222988,1720140655827,-314.83723044,0.00049863,120]
[331222990,1720140655836,-500.0,0.00049863,120]
[331222992,1720140655846,-185.14951056,0.00049863,120]
[331223033,1720140656232,-153.0,0.00024977,2]
[331223035,1720140656242,-153.0,0.00024977,2]
[331223037,1720140656252,-246.08546987,0.00049305,3]
[331223039,1720140656263,-1135.54,0.00049305,3]
[331224390,1720141149720,154.80649189,0.00014055,2]
[331224392,1720141210657,24900.0,0.00013999,2]
[331224398,1720141537490,3000.0,0.00013999,2]
[331224401,1720141747300,-300.0,0.00014997,2]
[331224402,1720141747321,-6417.59295984,0.00014998,2]
[331224403,1720141747343,-9614.54817379,0.00014998,2]
[331224404,1720141747364,-6981.74793087,0.00014998,2]
[331224405,1720141747386,-401.81458562,0.00014998,2]
[331224406,1720141747408,-364.04299557,0.00014998,2]
[331224407,1720141747430,-1634.59229075,0.00014999,2]
[331224408,1720141747451,-1434.44237247,0.00014999,2]
[331224409,1720141747472,-3078.51196359,0.00014999,2]
[331224410,1720141747492,-1916.29526789,0.00014999,2]
[331224411,1720141747516,-1597.25650539,0.00014999,2]
[331224412,1720141747536,-3137.77932824,0.00014999,2]
[331224413,1720141747561,-2132.45671248,0.00014999,2]
[331224414,1720141747583,-4710.72024946,0.00014999,2]
[331224415,1720141747604,-1104.60661146,0.00015,2]
[331224416,1720141747626,-2065.47301944,0.00016244,2]
[331224417,1720141747648,-2065.47301944,0.00016245,2]
[331224418,1720141747669,-27091.4887937,0.00016254,2]
[331224419,1720141749308,-230.69070366,0.00014999,2]
[331224420,1720141749328,-30120.78462752,0.00016254,2]
[331224421,1720141749349,-17247.35351992,0.00016255,2]
[331224422,1720141749370,-265.12121835,0.00016255,2]
[331224423,1720141749390,-42225.49623484,0.00016255,2]
[331224424,1720141749411,-166.666666,0.00016438,2]
[331224425,1720141749432,-276.41710019,0.0001681,2]
[331224426,1720141749453,-276.41710019,0.00016812,2]
[331224427,1720141749474,-166.666666,0.00016823,2]
[331224428,1720141749495,-166.666666,0.00017208,2]
[331224429,1720141749515,-166.666666,0.00017592,2]
[331224430,1720141749536,-166.666666,0.00017977,2]
[331224431,1720141749558,-204.83768925,0.00018,2]
[331224432,1720141749579,-190.93077717,0.00018179,2]
[331224433,1720141749599,-166.666666,0.00018362,2]
[331224434,1720141749619,-197.13178148,0.00019,2]
[331224435,1720141749640,-250.0,0.00019041,2]
[331224436,1720141749660,-163.613473,0.00019178,2]
[331224437,1720141749681,-158.994922,0.00019178,2]
[331224438,1720141749701,-150.0,0.0001937,2]
[331224439,1720141749724,-2065.47301944,0.0001979,2]
[331224440,1720141749746,-20754.18807731,0.000198,2]
[331224441,1720141749768,-52100.0,0.000198,2]
[331224442,1720141749789,-250.0,0.00019918,2]
[331224443,1720141749814,-2065.47301944,0.0001999,2]
[331224444,1720141749834,-427.95552057,0.0002,2]
[331224445,1720141749858,-3134.15611137,0.0002,2]
[331224446,1720141749879,-1116.93849339,0.0002,2]
[331224447,1720141749900,-169.50434797,0.0002,2]
[331224448,1720141749929,-435.0,0.0002,2]
[331224449,1720141749952,-154.80649189,0.0002,2]
[331224450,1720141749973,-562.70017201,0.0002,2]
[331224451,1720141749994,-154.80649189,0.0002,2]
[331224452,1720141750015,-4172.93378234,0.0002,2]
[331224453,1720141750036,-225.53884441,0.0002,2]
[331224454,1720141750060,-661.265051,0.00021096,2]
[331224455,1720141750081,-245.732475,0.00021096,2]
[331224456,1720141750102,-300.0,0.00022,9]
[331224457,1720141750122,-879.22437591,0.0002217,2]
[331224458,1720141750143,-173.04695508,0.00022901,2]
[331224459,1720141750166,-231.70505551,0.00023275,2]
[331224460,1720141750331,-153.15732193,0.00023347,2]
[331224461,1720141750353,-300.0,0.000235,10]
[331224462,1720141750376,-162.60257824,0.00023558,2]
[331224463,1720141750398,-162.60257824,0.00023608,2]
[331224464,1720141750419,-162.60257824,0.00023804,2]
[331224465,1720141750445,-194.8120331,0.00023859,2]
[331224466,1720141750465,-150.28023264,0.00023909,2]
[331224467,1720141750486,-150.28023264,0.00024285,2]
[331224468,1720141750507,-154.5308481,0.00024591,2]
[331224469,1720141750528,-162.60257824,0.00024596,2]
[331224470,1720141750552,-200.0,0.00024658,15]
[331224471,1720141750573,-194.8120331,0.00024867,2]
[331224472,1720141750597,-194.8120331,0.00024964,2]
[331224473,1720141750618,-362.8409251,0.00025,2]
[331224474,1720141750639,-154.80649189,0.00025,2]
[331224475,1720141750660,-194.8120331,0.00025512,2]
[331224476,1720141750681,-150.28023264,0.0002554,2]
[331224477,1720141750702,-154.5308481,0.0002577,2]
[331224478,1720141750722,-154.5308481,0.00025783,2]
[331224479,1720141750743,-162.60257824,0.00025886,2]